bitfinex/quotes_ETHUSD_20250603
["timestamp","ask_amount","ask_price","bid_price","bid_amount"]
[1748921171783,1.26080288,2599.9,2599.3,0.3887]
[1748921171988,3.84704218,2599.4,2599.1,0.3887]
[1748921172208,3.84699256,2599.5,2599.0,8.0]
[1748921172618,3.84678302,2599.6,2599.0,11.84754668]
[1748921173312,3.84686496,2599.6,2599.0,11.84754668]
[1748921173610,3.84686496,2599.6,2599.0,12.23260124]
[1748921174621,3.84714243,2599.4,2599.0,0.38505456]
[1748921174824,3.84714243,2599.4,2598.9,0.3887]
[1748921174825,3.84736153,2599.2,2598.9,0.3887]
[1748921174986,3.84736153,2599.2,2598.7,0.3887]
[1748921175385,3.84724833,2599.3,2598.7,4.23675249]
[1748921175589,3.84736173,2599.2,2598.7,4.23675249]
[1748921175782,3.84736173,2599.2,2598.7,8.76878065]
[1748921175986,3.84722587,2599.3,2598.7,12.61679343]
[1748921176225,7.97109653,2599.4,2598.8,3.84790132]
[1748921176434,3.84725526,2599.3,2598.7,12.61681971]
[1748921176585,5.15499157,2599.4,2598.8,3.84789382]
[1748921176789,3.84735842,2599.2,2598.7,0.76878065]
[1748921177286,4.9426,2599.3,2598.7,0.76878065]
[1748921177287,4.9426,2599.3,2598.8,3.84783905]
[1748921177600,4.123,2599.2,2598.8,3.84783905]
[1748921177912,3.84748566,2599.1,2598.7,0.76878065]
[1748921178111,3.84748566,2599.1,2598.5,3.8483386]
[1748921178112,4.64476329,2599.0,2598.5,0.3887]
[1748921178331,7.97043981,2599.2,2598.5,0.3887]
[1748921178332,3.84780029,2598.9,2598.5,0.3887]
[1748921178834,4.123,2598.8,2598.5,0.3887]
[1748921179234,4.123,2598.8,2598.5,4.2370666]
[1748921179436,0.8196,2599.5,2598.5,0.3887]
[1748921179626,3.84743646,2599.2,2598.6,3.84812635]
[1748921179824,3.84763443,2599.0,2598.5,4.23704766]
[1748921180034,3.84717113,2599.4,2598.9,0.3887]
[1748921180331,0.7785,2599.7,2598.9,0.3887]
[1748921180511,7.96976329,2599.6,2599.0,9.80861228]
[1748921180714,4.123,2599.6,2599.0,5.96097858]
[1748921181018,4.123,2599.6,2599.0,10.44352372]
[1748921181019,7.96981261,2599.6,2599.0,10.44352372]
[1748921181403,3.84691893,2599.5,2599.0,5.96097858]
[1748921181841,3.84691893,2599.5,2598.9,0.3887]
[1748921181842,3.84703154,2599.5,2598.9,0.3887]
[1748921182051,7.96975627,2599.6,2598.9,0.3887]
[1748921182052,7.969765,2599.6,2599.0,3.847535]
[1748921182254,12.55492477,2599.9,2599.3,3.84708369]
[1748921182550,3.84663565,2599.7,2599.2,4.23597356]
[1748921182699,3.84663565,2599.7,2599.2,0.3887]
[1748921183100,3.8465704,2599.8,2599.2,0.3887]
[1748921183320,4.122,2599.6,2599.2,0.3887]
[1748921183495,7.96876898,2599.6,2599.2,0.3887]
[1748921183696,3.84694703,2599.5,2599.2,0.3887]
[1748921184011,7.96878337,2599.6,2599.2,0.3887]
[1748921184215,3.84664184,2599.7,2599.2,0.3887]
[1748921184216,3.84669021,2599.7,2599.2,0.3887]
[1748921184529,4.122,2599.6,2599.4,3.84693011]
[1748921184736,4.122,2599.6,2599.2,4.65954048]
[1748921185199,4.122,2599.6,2599.2,0.81231743]
[1748921185602,7.96875033,2599.6,2599.2,0.81231743]
[1748921185825,7.96875033,2599.6,2599.2,0.3887]
[1748921186322,4.122,2599.6,2599.2,0.3887]
[1748921186527,4.121,2599.5,2599.2,0.3887]
[1748921187863,4.121,2599.5,2599.2,4.23601545]
[1748921189182,3.84660917,2599.7,2599.2,0.3887]
[1748921189629,4.12,2599.6,2599.2,0.3887]
[1748921189965,4.12,2599.5,2599.2,0.3887]
[1748921190394,4.12,2599.5,2599.0,0.3887]
[1748921190665,3.8470057,2599.5,2599.0,12.23632333]
[1748921190871,4.12,2599.4,2599.0,12.23632333]
[1748921191242,4.99453057,2599.4,2599.0,0.3887]
[1748921191565,4.62507967,2599.6,2599.1,3.84745682]
[1748921191775,4.12,2599.3,2599.0,4.236276]
[1748921191945,4.12,2599.3,2599.1,3.84739976]
[1748921192269,4.12,2599.5,2599.3,3.84717116]
[1748921192476,4.12,2599.5,2599.2,3.84728289]
[1748921192777,4.12,2599.5,2599.2,5.25173849]
[1748921193177,4.12,2599.5,2599.2,8.17974403]
[1748921194065,3.84661379,2599.7,2599.2,8.17974403]
[1748921194241,0.7687,2600.0,2599.2,8.17974403]
[1748921194242,4.61495859,2600.0,2599.4,6.77503984]
[1748921194447,4.119,2599.9,2599.4,6.77503984]
[1748921195357,3.84625859,2600.0,2599.4,6.77503984]
[1748921195561,8.6962,2600.4,2599.8,2.92800554]
[1748921195775,4.61184029,2600.4,2600.0,2.92800554]
[1748921195962,4.119,2600.3,2600.0,2.92800554]
[1748921196144,4.61177547,2600.4,2600.0,2.92800554]
[1748921196349,4.119,2600.3,2600.0,2.92800554]
[1748921196589,7.96473391,2600.3,2600.0,2.92800554]
[1748921197284,7.96473391,2600.3,2599.7,3.84654086]
[1748921198483,4.119,2600.3,2599.6,10.19514158]
[1748921198650,4.118,2600.2,2599.8,4.23514972]
[1748921198846,0.7666,2600.6,2599.8,4.23514972]
[1748921198847,3.84540228,2600.6,2599.8,1.43083351]
[1748921199053,0.02,2600.9,2600.4,0.3887]
[1748921199259,0.02,2600.9,2600.4,4.23414961]
[1748921199260,4.118,2600.8,2600.4,4.23414961]
[1748921200269,4.118,2600.8,2600.4,0.3887]
[1748921200593,4.118,2600.7,2600.4,0.3887]
[1748921200789,4.118,2600.7,2600.4,4.2342481]
[1748921200995,4.118,2600.7,2600.4,0.3887]
[1748921202097,4.117,2600.7,2600.4,0.3887]
[1748921202886,3.8449719,2600.8,2600.4,0.3887]
[1748921203081,4.117,2600.7,2600.4,0.3887]
[1748921204196,7.96213038,2600.7,2600.4,0.77566536]
[1748921204497,4.117,2600.7,2600.4,0.77566536]
[1748921206401,3.84500295,2600.8,2600.4,0.77566536]
[1748921206402,7.96006132,2600.8,2600.4,1.83378741]
[1748921206606,3.84513682,2600.7,2600.4,0.77566536]
[1748921206999,7.96003594,2600.8,2600.4,0.77566536]
[1748921208173,7.96003594,2600.8,2600.4,0.3887]
[1748921208386,7.96003594,2600.8,2600.2,9.80547758]
[1748921208387,3.84513025,2600.7,2600.2,3.84584504]
[1748921208602,7.96004208,2600.8,2600.2,6.01100467]
[1748921210198,3.84512083,2600.7,2600.2,6.01100467]
[1748921210425,3.84557693,2600.4,2599.6,8.0]
[1748921210633,0.7793,2600.2,2599.3,3.84710826]
[1748921210922,3.84615876,2600.0,2599.1,5.95970146]
[1748921211122,7.96036924,2599.9,2599.2,0.59597015]
[1748921211273,7.96036178,2599.9,2599.2,0.59597015]
[1748921211475,7.96036178,2599.9,2599.3,3.84715617]
[1748921211712,3.84646861,2599.8,2599.2,0.59597015]
[1748921212013,7.9603632,2599.9,2599.3,3.84709549]
[1748921212905,4.114,2599.9,2599.4,3.84703239]
[1748921213578,4.114,2599.8,2599.2,8.59597015]
[1748921213785,4.114,2599.8,2599.4,3.84699358]
[1748921217112,3.84623849,2600.0,2599.4,3.84699358]
[1748921217272,4.113,2599.8,2599.4,3.84699358]
[1748921217808,4.6188175,2599.7,2598.1,0.02]
[1748921217994,4.62029748,2598.7,2598.1,0.02]
[1748921218323,3.84837406,2598.5,2598.1,0.02]
[1748921218672,3.84758718,2599.1,2598.3,3.84853198]
[1748921218876,7.96073936,2599.0,2598.3,3.84857839]
[1748921219675,3.8478276,2598.9,2598.2,3.84877335]
[1748921219997,4.8775,2599.0,2598.1,0.02]
[1748921220187,3.84831464,2598.6,2598.1,0.02]
[1748921220385,4.113,2598.5,2598.1,0.02]
[1748921220715,7.96142303,2598.5,2598.1,0.02]
[1748921221386,4.113,2598.5,2597.6,5.86380703]
[1748921221584,3.84863066,2598.4,2597.7,1.58647108]
[1748921222211,3.84863066,2598.4,2597.7,1.97156395]
[1748921222416,3.84863066,2598.4,2597.8,3.84932328]
[1748921222787,8.78583345,2598.5,2597.8,3.84932328]
[1748921222982,8.78583345,2598.5,2597.8,4.92937992]
[1748921223333,8.78583345,2598.5,2597.9,3.84921517]
[1748921223690,8.78583345,2598.5,2597.8,12.96789698]
[1748921223886,4.67283345,2598.5,2597.8,9.08005664]
[1748921224128,4.113,2598.4,2597.8,9.08005664]
[1748921224712,4.113,2598.4,2597.9,3.84923818]
[1748921225699,4.113,2598.4,2597.9,3.84923688]
[1748921226345,4.6728001,2598.5,2597.9,3.84923688]
[1748921226518,4.113,2598.4,2597.9,3.84923688]
[1748921227845,0.7597,2598.7,2598.0,3.88760429]
[1748921228159,0.7597,2598.7,2598.2,3.84881007]
[1748921228160,4.113,2598.6,2598.2,3.84881007]
[1748921228559,0.7597,2598.7,2598.2,3.84881007]
[1748921229041,4.113,2598.6,2598.2,3.84881007]
[1748921229561,4.113,2598.6,2598.1,3.84889723]
[1748921230449,4.113,2598.6,2598.1,4.80629276]
[1748921230951,3.84911646,2598.0,2597.4,3.84990036]
[1748921231153,3.84911646,2598.0,2597.2,3.85017666]
[1748921231154,3.84943709,2597.8,2597.2,4.98019739]
[1748921231447,7.96212996,2598.0,2597.2,4.98021025]
[1748921231670,7.96220213,2598.0,2597.3,3.8886479]
[1748921231811,7.96220213,2598.0,2597.3,4.77753371]
[1748921232006,3.84929214,2597.9,2597.3,4.77753371]
[1748921232858,4.113,2598.0,2597.3,0.92738163]
[1748921233158,7.96214704,2598.0,2597.3,0.88888581]
[1748921233371,3.84939955,2597.9,2597.3,4.73903006]
[1748921234348,3.84934512,2597.9,2597.3,4.73903006]
[1748921234724,4.113,2598.0,2597.5,3.84973459]
[1748921234929,7.96211857,2598.0,2597.5,3.84973459]
[1748921235356,4.113,2598.0,2597.5,3.84973459]
[1748921236145,4.6196688,2598.1,2597.5,4.71255931]
[1748921236330,3.84914256,2598.0,2597.5,0.86272612]
[1748921236843,3.8491147,2598.0,2597.5,0.86272612]
[1748921237150,3.8491147,2598.0,2597.4,3.84990726]
[1748921237373,4.113,2598.1,2597.2,0.38584194]
[1748921237572,3.84949837,2597.8,2597.3,1.13]
[1748921237780,3.84932653,2597.9,2597.3,4.98013408]
[1748921238778,3.84932653,2597.9,2597.4,3.84998281]
[1748921238991,7.96200509,2598.1,2597.5,3.8497637]
[1748921239150,3.84918384,2598.0,2597.4,4.77531648]
[1748921239836,4.113,2597.9,2597.4,4.77531648]
[1748921240310,3.84918384,2598.0,2597.5,3.8498522]
[1748921240596,4.113,2597.9,2597.4,4.77532243]
[1748921240797,3.84918384,2598.0,2597.5,3.84985485]
[1748921240979,3.84918384,2598.0,2597.4,0.925374]
[1748921240980,4.113,2597.9,2597.4,4.77531109]
[1748921241185,4.113,2597.9,2597.5,0.97553505]
[1748921241574,7.96230474,2597.9,2597.5,0.97553505]
[1748921241774,3.84948977,2597.8,2597.3,1.13]
[1748921242294,3.84948977,2597.8,2597.1,4.24963486]
[1748921242295,0.756,2597.8,2597.1,0.02]
[1748921242450,3.85012894,2597.4,2597.1,0.02]
[1748921242655,7.96206133,2597.4,2597.1,0.02]
[1748921243260,0.756,2597.8,2597.2,3.85030032]
[1748921243462,4.60542672,2597.8,2597.3,3.85004079]
[1748921243853,4.60542672,2597.8,2597.2,4.23726615]
[1748921244470,3.84958966,2597.7,2597.2,0.38703003]
[1748921244773,3.84958966,2597.7,2597.2,4.23731579]
[1748921245182,0.756,2597.8,2597.3,3.85007104]
[1748921245387,0.756,2597.8,2597.3,4.6608156]
[1748921245561,4.60541691,2597.8,2597.3,4.6608156]
[1748921245761,4.60541691,2597.8,2597.3,0.81074456]
[1748921245982,4.60541691,2597.8,2597.3,4.66081742]
[1748921245983,0.756,2597.8,2597.3,4.66081742]
[1748921246195,4.6055233,2597.8,2597.2,4.23729856]
[1748921247557,0.756,2597.8,2597.2,0.38703003]
[1748921247758,4.6054299,2597.8,2597.2,4.23722199]
[1748921248795,4.6054299,2597.8,2597.2,4.27576199]
[1748921249799,4.6054299,2597.8,2597.2,4.23726262]
[1748921250405,0.756,2597.8,2597.2,4.23726262]
[1748921250705,0.756,2597.8,2597.3,4.42090391]
[1748921251803,4.9038,2598.0,2597.5,3.84975212]
[1748921252007,8.75291721,2598.0,2597.4,3.8499429]
[1748921253603,4.9038,2598.0,2597.6,3.84962347]
[1748921254027,0.7928,2598.0,2597.4,2.93288296]
[1748921254170,0.7506,2598.2,2597.7,3.8494475]
[1748921254505,3.84837674,2598.5,2597.8,6.78228542]
[1748921254707,5.10418842,2598.5,2597.9,3.84916426]
[1748921255008,0.7947,2598.4,2597.5,1.86337771]
[1748921255212,3.8489005,2598.2,2597.6,3.84962363]
[1748921255415,0.7947,2598.0,2597.5,3.84985513]
[1748921255591,0.7947,2598.0,2597.6,3.84970742]
[1748921255915,0.7947,2598.0,2597.5,3.84980485]
[1748921256215,0.7947,2598.0,2597.6,3.84968839]
[1748921256384,0.7947,2598.0,2597.5,3.84985563]
[1748921256591,0.7947,2598.0,2597.6,3.8496301]
[1748921257601,0.7947,2598.0,2597.7,3.84952988]
[1748921258905,0.7947,2598.0,2597.6,3.84963658]
[1748921259302,4.9005,2598.3,2597.6,3.84967547]
[1748921259507,8.74919044,2598.3,2597.7,3.84955922]
[1748921259702,3.84890525,2598.2,2597.6,3.84969828]
[1748921260217,8.74918945,2598.3,2597.7,3.84945505]
[1748921260613,4.63918945,2598.3,2597.7,3.84945505]
[1748921260778,4.11,2598.2,2597.8,3.84938266]
[1748921260983,4.11,2598.2,2597.7,3.84949045]
[1748921261504,4.63918945,2598.3,2597.7,3.84949045]
[1748921261705,4.109,2598.2,2597.8,3.84938763]
[1748921262915,0.7905,2598.3,2597.8,3.84938763]
[1748921263237,0.7905,2598.3,2597.9,3.84926286]
[1748921263405,4.8995,2598.5,2598.0,3.84903834]
[1748921264440,8.74787417,2598.5,2598.0,3.84903834]
[1748921264629,3.84852478,2598.4,2597.8,3.84932309]
[1748921265415,3.84890472,2598.2,2597.6,1.56129263]
[1748921265615,3.84890472,2598.2,2597.5,3.84980768]
[1748921266012,3.84890472,2598.2,2597.7,3.84952776]
[1748921266226,3.84852216,2598.4,2597.7,3.84952776]
[1748921266443,3.84874232,2598.3,2597.7,3.84952776]
[1748921267101,3.84867028,2598.3,2597.7,3.84952776]
[1748921267740,3.84877459,2598.3,2597.7,3.84952776]
[1748921269241,3.84884515,2598.2,2597.7,3.84952776]
[1748921269409,3.84884515,2598.2,2597.6,3.84966832]
[1748921269410,0.825,2598.1,2597.6,3.84966832]
[1748921269608,0.825,2598.1,2597.5,1.127]
[1748921269609,4.6739669,2598.1,2597.5,3.84978649]
[1748921269833,3.84920314,2598.0,2597.4,3.84994866]
[1748921270143,4.67397849,2598.1,2597.5,3.84971765]
[1748921270344,4.933,2598.1,2597.6,3.84968868]
[1748921270656,0.825,2598.1,2597.6,3.84962853]
[1748921270874,3.84970356,2597.7,2597.1,0.02]
[1748921271146,0.8207,2597.6,2597.1,3.87042705]
[1748921271368,4.107,2597.9,2597.3,3.85015208]
[1748921271711,7.95627404,2597.9,2597.3,3.85015208]
[1748921272546,7.95627404,2597.9,2597.3,9.82138764]
[1748921272743,7.95627404,2597.9,2597.3,3.85015208]
[1748921272942,7.95627404,2597.9,2597.4,3.84994227]
[1748921272943,4.107,2597.9,2597.4,3.84994227]
[1748921273146,4.66983688,2598.0,2597.4,0.82387736]
[1748921273455,4.66983688,2598.0,2597.2,4.38888366]
[1748921273456,3.84942305,2597.8,2597.2,4.38888366]
[1748921273943,7.9563081,2597.9,2597.3,3.85014734]
[1748921274166,3.84950878,2597.8,2597.2,3.85021215]
[1748921274660,0.8113,2597.7,2597.2,3.85021215]
[1748921275653,0.8113,2597.7,2597.2,3.85028292]
[1748921276010,1.68808014,2597.7,2597.1,0.02]
[1748921276213,0.8125,2597.4,2597.1,0.02]
[1748921276448,4.9195,2597.4,2597.1,0.02]
[1748921276650,3.85016329,2597.3,2597.1,0.02]
[1748921276931,5.11211758,2597.3,2597.1,0.02]
[1748921277147,1.26195429,2597.3,2597.1,0.02]
[1748921277757,5.11212232,2597.3,2597.1,0.02]
[1748921277961,1.26195429,2597.3,2597.1,0.02]
[1748921278782,0.8029,2597.8,2597.3,3.85015208]
[1748921278980,4.107,2598.0,2597.7,2.93300676]
[1748921279140,1.124,2598.8,2597.3,3.8500328]
[1748921279141,0.8029,2597.9,2597.3,2.93300676]
[1748921279344,4.65225675,2597.9,2597.3,6.78309891]
[1748921279545,10.02008998,2597.9,2597.3,6.78309891]
[1748921280141,6.17073323,2597.9,2597.5,6.78282528]
[1748921280435,0.7766,2598.1,2597.7,6.78249936]
[1748921280659,0.7766,2598.1,2597.6,3.84959585]
[1748921280864,4.62559569,2598.1,2597.5,3.84979782]
[1748921281494,4.106,2598.0,2597.5,3.84979782]
[1748921281696,3.84980976,2597.6,2597.1,0.02]
[1748921281901,8.78047535,2597.5,2597.1,0.02]
[1748921282069,4.106,2597.4,2597.1,0.02]
[1748921282266,7.95601621,2597.4,2597.1,0.02]
[1748921282680,4.106,2597.4,2597.1,0.02]
[1748921283395,4.10012272,2597.4,2597.1,0.02]
[1748921284461,4.10012272,2597.4,2597.1,3.87042291]
[1748921284857,0.8245,2597.5,2597.2,2.93300676]
[1748921284858,4.9305,2597.5,2597.2,2.93300676]
[1748921285086,4.9305,2597.5,2597.1,0.02]
[1748921285301,5.80852207,2597.5,2597.1,0.02]
[1748921285791,9.65845769,2597.5,2597.1,0.02]
[1748921286002,3.85019746,2597.3,2597.1,0.02]
[1748921286187,5.80852207,2597.5,2597.1,0.02]
[1748921286358,9.65842592,2597.5,2597.1,0.02]
[1748921286562,1.35081637,2597.4,2597.1,0.02]
[1748921287000,5.20082974,2597.4,2597.1,0.02]
[1748921288419,1.35081637,2597.4,2597.1,0.02]
[1748921288565,4.105,2597.3,2597.1,2.95300676]
[1748921289820,4.105,2597.3,2597.1,0.02]
[1748921290601,3.85030032,2597.2,2597.1,0.02]
[1748921290903,0.7543,2597.2,2597.1,0.02]
[1748921292712,4.60460032,2597.2,2597.1,0.02]
[1748921292903,5.86057663,2597.2,2597.1,0.02]
[1748921293699,5.86717663,2597.2,2597.1,0.02]
[1748921294694,9.97217663,2597.2,2597.1,0.02]
[1748921295678,5.86717663,2597.2,2597.1,0.02]
[1748921296183,8.71520032,2597.2,2597.1,0.02]
[1748921296380,0.7609,2597.4,2597.1,0.02]
[1748921296590,4.104,2597.3,2597.1,0.02]
[1748921296894,3.85030032,2597.2,2597.1,0.02]
[1748921297307,7.95419784,2597.3,2597.1,0.02]
[1748921297510,9.2106973,2597.3,2597.1,0.02]
[1748921297908,3.85030032,2597.2,2597.1,0.02]
[1748921298218,9.21072109,2597.3,2597.1,0.02]
[1748921298581,4.104,2597.2,2597.1,0.02]
[1748921299010,5.10672109,2597.3,2597.1,0.02]
[1748921299207,4.104,2597.2,2597.1,0.02]
[1748921300279,8.56644027,2597.2,2597.1,0.02]
[1748921300704,9.37994027,2597.2,2597.1,0.02]
[1748921303400,5.27594027,2597.2,2597.1,0.02]
[1748921303720,9.37994027,2597.2,2597.1,0.02]
[1748921304833,9.37894027,2597.2,2597.1,0.02]
[1748921311942,17.37894027,2597.2,2597.1,0.02]
[1748921312944,3.85178337,2596.2,2596.1,0.02]
[1748921315756,4.66748337,2596.2,2596.1,0.02]
[1748921316320,12.66748337,2596.2,2596.1,0.02]
[1748921317667,11.85237691,2595.8,2595.7,1.83326774]
[1748921317805,21.78164506,2595.8,2595.7,1.83326774]
[1748921319720,14.7466383,2595.8,2595.7,1.83326774]
[1748921320071,8.72817691,2595.8,2595.7,1.83326774]
[1748921322952,4.62617691,2595.8,2595.7,1.83326774]
[1748921323466,4.102,2595.9,2595.7,1.83326774]
[1748921323816,3.85231325,2595.9,2595.7,1.83326774]
[1748921324021,4.102,2595.8,2595.7,1.83326774]
[1748921324217,7.95437691,2595.8,2595.7,1.83326774]
[1748921326276,9.89272585,2595.8,2595.7,1.83326774]
[1748921326435,7.95437691,2595.8,2595.7,1.83326774]
[1748921329450,3.85228612,2595.9,2595.7,1.83326774]
[1748921329651,8.74107691,2595.8,2595.7,1.83326774]
[1748921329891,16.74107691,2595.8,2595.7,1.83326774]
[1748921330155,18.80040859,2595.8,2595.7,1.83326774]
[1748921330385,19.35040859,2595.8,2595.7,1.83326774]
[1748921336001,27.28040859,2595.8,2595.7,1.83326774]
[1748921337114,19.35040859,2595.8,2595.7,1.83326774]
[1748921337410,19.29840859,2595.8,2595.7,1.83326774]
[1748921337616,26.45137967,2595.8,2595.7,1.83326774]
[1748921339686,30.50037967,2595.8,2595.7,1.83326774]
[1748921340719,26.45137967,2595.8,2595.7,1.83326774]
[1748921340876,26.45137967,2595.8,2595.5,0.66666667]
[1748921340877,8.45167375,2595.6,2595.5,0.66666667]
[1748921341071,17.23467375,2595.6,2595.5,0.66666667]
[1748921341418,18.40467375,2595.6,2595.5,0.66666667]
[1748921342801,14.30467375,2595.6,2595.5,0.66666667]
[1748921343007,13.75467375,2595.6,2595.5,0.66666667]
[1748921343210,17.85467375,2595.6,2595.5,0.66666667]
[1748921343506,3.85267375,2595.6,2595.5,0.66666667]
[1748921344604,7.95267375,2595.6,2595.5,0.66666667]
[1748921345140,3.85238004,2595.8,2595.6,0.04]
[1748921345594,3.8524121,2595.8,2595.6,0.04]
[1748921345790,3.8522765,2595.9,2595.6,0.04]
[1748921346219,7.9512765,2595.9,2595.6,0.04]
[1748921346426,3.85239421,2595.8,2595.6,0.04]
[1748921346934,7.95125048,2595.9,2595.6,0.04]
[1748921347325,7.95127064,2595.9,2595.6,0.04]
[1748921347540,3.85252533,2595.7,2595.6,0.04]
[1748921348205,3.85242855,2595.8,2595.6,0.04]
[1748921348395,7.95123348,2595.9,2595.6,0.04]
[1748921348900,3.85240314,2595.8,2595.6,0.04]
[1748921349097,3.85252533,2595.7,2595.6,0.04]
[1748921349840,7.95127504,2595.9,2595.6,0.04]
[1748921350035,4.099,2595.8,2595.6,0.04]
[1748921350241,3.85246939,2595.8,2595.6,0.04]
[1748921350456,8.0,2596.4,2595.6,0.04]
[1748921350683,3.85209557,2596.0,2595.7,0.04]
[1748921350832,3.85196699,2596.1,2595.7,0.04]
[1748921351234,4.098,2596.2,2595.8,0.04]
[1748921351444,3.8521743,2596.0,2595.8,0.04]
[1748921351772,4.098,2596.2,2595.8,0.04]
[1748921351773,3.85222851,2595.9,2595.8,0.04]
[1748921351927,3.85267375,2595.6,2595.5,0.66666667]
[1748921352364,7.95047412,2595.8,2595.5,0.66666667]
[1748921352523,7.95047412,2595.8,2595.6,0.04]
[1748921352723,3.85247412,2595.8,2595.6,0.04]
[1748921354070,4.098,2595.9,2595.6,0.04]
[1748921354373,3.85241761,2595.8,2595.6,0.04]
[1748921355637,4.098,2595.9,2595.6,0.04]
[1748921355862,3.85237691,2595.8,2595.6,0.04]
[1748921356379,3.85252533,2595.7,2595.6,0.04]
[1748921356938,7.95025116,2595.9,2595.6,0.04]
[1748921356939,3.85240525,2595.8,2595.6,0.04]
[1748921357171,7.94927483,2595.9,2595.6,0.04]
[1748921357558,8.7703,2596.3,2595.7,0.04]
[1748921357559,4.097,2596.0,2595.7,0.04]
[1748921357759,3.85187668,2596.2,2595.7,0.04]
[1748921358037,7.94887668,2596.2,2595.8,0.04]
[1748921358589,3.85196502,2596.1,2595.8,0.04]
[1748921359237,3.85178496,2596.2,2595.8,0.04]
[1748921359644,3.851976,2596.1,2595.8,0.04]
[1748921360779,3.85222851,2595.9,2595.8,0.04]
[1748921361359,3.85214096,2596.0,2595.8,0.04]
[1748921362883,4.097,2596.3,2595.8,0.04]
[1748921362884,3.85204658,2596.1,2595.8,0.04]
[1748921363053,3.85211193,2596.0,2595.8,0.04]
[1748921363256,8.7962,2596.6,2595.8,0.04]
[1748921363461,3.85179344,2596.2,2595.8,0.04]
[1748921364951,3.85194788,2596.1,2595.8,0.04]
[1748921365397,3.85209428,2596.0,2595.8,0.04]
[1748921365914,3.85165095,2596.3,2595.8,0.04]
[1748921366056,3.85178881,2596.2,2595.8,0.04]
[1748921366784,7.94678881,2596.2,2595.8,0.04]
[1748921366952,3.85168011,2596.3,2595.8,3.8923624]
[1748921367152,7.94668011,2596.3,2595.9,0.39308813]
[1748921367404,7.94668011,2596.3,2596.0,0.04]
[1748921368168,3.85180212,2596.2,2596.0,0.04]
[1748921369493,3.85193174,2596.1,2596.0,0.04]
[1748921369690,3.85193174,2596.1,2595.7,0.38107848]
[1748921369691,3.8521698,2596.0,2595.7,0.42107848]
[1748921369890,3.85197949,2596.1,2595.7,0.42107848]
[1748921370070,3.8518284,2596.2,2595.7,0.42107848]
[1748921370258,3.85181672,2596.2,2595.7,0.42107848]
[1748921370457,3.85203726,2596.1,2595.7,0.42107848]
[1748921370692,4.095,2596.3,2595.7,0.42107848]
[1748921370911,4.96503958,2596.3,2595.7,0.42107848]
[1748921371055,3.85202244,2596.1,2595.7,0.42107848]
[1748921372052,7.94668168,2596.3,2595.8,3.89235603]
[1748921372293,7.94568168,2596.3,2595.8,3.89235603]
[1748921372491,3.85168168,2596.3,2595.9,0.04]
[1748921374091,3.85203971,2596.1,2595.9,0.04]
[1748921374290,5.03133971,2596.3,2595.9,0.04]
[1748921374291,1.179704,2596.3,2595.9,0.04]
[1748921374498,3.85167464,2596.3,2595.9,0.04]
[1748921375073,7.94455923,2596.4,2595.9,0.04]
[1748921375272,3.85155923,2596.4,2595.9,3.89222689]
[1748921375475,4.093,2596.5,2595.9,0.85258288]
[1748921375688,3.8517256,2596.3,2595.9,0.04]
[1748921376189,4.093,2596.5,2595.9,0.04]
[1748921376505,3.8518637,2596.2,2595.9,0.04]
[1748921376700,3.85201567,2596.1,2595.9,0.04]
[1748921377017,3.85185575,2596.2,2595.9,0.04]
[1748921377581,3.85192252,2596.2,2595.9,0.04]
[1748921378095,3.8519765,2596.1,2595.9,0.04]
[1748921378302,3.85208012,2596.0,2595.7,0.42107848]
[1748921378498,3.8521639,2596.0,2595.7,0.42107848]
[1748921378873,4.093,2596.0,2594.9,1.85997264]
[1748921379078,3.85244466,2595.8,2595.2,3.89326712]
[1748921379327,3.85244466,2595.8,2595.3,0.03852516]
[1748921379524,3.85252525,2595.8,2595.3,0.03852516]
[1748921379683,3.85304635,2595.4,2595.2,0.43003925]
[1748921379878,3.85283491,2595.5,2595.2,0.04]
[1748921380082,3.85305687,2595.4,2595.2,0.04]
[1748921380318,3.85311909,2595.3,2595.2,0.04]
[1748921380621,3.85302655,2595.4,2595.2,0.04]
[1748921380828,7.94484511,2595.5,2595.2,0.04]
[1748921381187,9.91138683,2595.5,2595.1,0.02]
[1748921381394,3.85322437,2595.3,2595.1,0.02]
[1748921381583,3.85301668,2595.4,2595.1,0.02]
[1748921383940,0.7526,2596.0,2595.2,0.04]
[1748921384143,3.85241219,2595.8,2595.2,2.97649274]
[1748921384290,3.85249447,2595.8,2595.3,0.68498082]
[1748921384484,7.94449447,2595.8,2595.3,0.68498082]
[1748921384798,3.85256856,2595.7,2595.2,2.97649274]
[1748921386231,3.85256856,2595.7,2595.2,6.82975429]
[1748921386397,3.85256856,2595.7,2595.2,2.97649274]
[1748921386598,7.94439897,2595.8,2595.2,6.78965617]
[1748921386838,3.85229162,2595.9,2595.3,4.95938619]
[1748921387014,4.092,2595.8,2595.3,1.10630008]
[1748921387206,7.94442434,2595.8,2595.3,1.10630008]
[1748921388232,3.85253864,2595.7,2595.3,1.10630008]
[1748921389413,7.94444301,2595.8,2595.3,1.10630008]
[1748921390239,3.85256289,2595.7,2595.3,1.10630008]
[1748921390441,7.94443532,2595.8,2595.3,1.10630008]
[1748921390731,3.85269008,2595.6,2595.3,0.04]
[1748921390935,3.85261528,2595.7,2595.3,0.04]
[1748921392343,3.8526915,2595.6,2595.3,0.04]
[1748921393443,3.85271999,2595.6,2595.3,0.04]
[1748921393804,3.85254853,2595.7,2595.3,0.04]
[1748921394000,4.092,2595.8,2595.3,3.89303213]
[1748921394240,3.85222851,2595.9,2595.3,3.89303213]
[1748921394536,7.94340359,2595.8,2595.3,3.89303213]
[1748921394698,7.94340359,2595.8,2595.3,0.04]
[1748921394699,3.85253112,2595.7,2595.3,0.04]
[1748921395143,7.94342011,2595.8,2595.3,0.04]
[1748921395442,7.94344138,2595.8,2595.3,0.04]
[1748921396523,7.94344138,2595.8,2595.3,3.89309397]
[1748921396726,7.94345472,2595.8,2595.3,3.8930986]
[1748921397874,7.94345472,2595.8,2595.3,0.04]
[1748921398512,7.94338909,2595.8,2595.3,0.04]
[1748921398712,8.737728,2595.8,2595.3,0.04]